bitfinex/quotes_BTCUSD_20251010
["timestamp","ask_amount","ask_price","bid_price","bid_amount"]
[1760131833619,0.1186257,108810.0,108680.0,0.3]
[1760131833822,0.3025457,108810.0,108680.0,0.3]
[1760131834333,0.3025457,108810.0,108630.0,0.29644761]
[1760131834627,0.3025457,108810.0,108750.0,0.02816]
[1760131834790,0.30238636,108810.0,108750.0,0.02816]
[1760131834993,0.30231903,108810.0,108750.0,0.02816]
[1760131835221,0.30231903,108810.0,108590.0,0.29644761]
[1760131835535,0.30231903,108810.0,108590.0,0.00480583]
[1760131835684,0.30231903,108810.0,108640.0,0.3]
[1760131836036,0.30231903,108810.0,108600.0,0.19549761]
[1760131836184,0.30231903,108810.0,108600.0,5e-05]
[1760131836604,0.30231903,108810.0,108660.0,0.19544761]
[1760131836605,0.11839903,108810.0,108660.0,0.19544761]
[1760131836805,0.11839903,108810.0,108780.0,0.3]
[1760131837007,0.11839903,108810.0,108710.0,0.04533002]
[1760131837008,0.11408041,108810.0,108740.0,0.19544761]
[1760131837294,0.01516094,109000.0,108830.0,0.3]
[1760131837465,0.2758,108810.0,108670.0,0.19544761]
[1760131837812,0.17529523,108810.0,108680.0,0.02025594]
[1760131838018,0.17529523,108810.0,108600.0,5e-05]
[1760131838019,0.05397616,108800.0,108640.0,0.3]
[1760131838166,0.10327647,108810.0,108630.0,0.3]
[1760131838488,0.01281486,108800.0,108610.0,0.19544761]
[1760131838630,4.4e-07,108830.0,108700.0,0.3]
[1760131838985,0.09193036,108800.0,108700.0,0.3]
[1760131839194,0.09193036,108800.0,108600.0,0.00485613]
[1760131839195,0.36775036,108800.0,108600.0,0.00485613]
[1760131839397,0.36775036,108800.0,108640.0,0.19544761]
[1760131839609,0.36775036,108800.0,108630.0,0.04506648]
[1760131839610,0.36775036,108800.0,108600.0,5e-05]
[1760131839767,0.36775036,108800.0,108600.0,0.00055481]
[1760131839947,0.36775036,108800.0,108630.0,0.19544761]
[1760131840143,0.36775036,108800.0,108670.0,0.19544761]
[1760131840402,0.36775036,108800.0,108740.0,0.19544761]
[1760131840570,0.36775036,108800.0,108790.0,0.3]
[1760131840753,0.36775036,108800.0,108690.0,0.19544761]
[1760131840959,0.36775036,108800.0,108600.0,5e-05]
[1760131841199,0.35684247,108800.0,108750.0,0.19544761]
[1760131841401,0.26509614,108800.0,108770.0,0.19544761]
[1760131841608,0.26509614,108800.0,108670.0,0.19544761]
[1760131841816,0.2601437,108800.0,108790.0,0.3]
[1760131841961,0.2601437,108800.0,108730.0,0.19544761]
[1760131842149,0.2601437,108800.0,108630.0,0.02206135]
[1760131842478,0.18165691,108800.0,108790.0,0.19544761]
[1760131842647,0.16258581,108800.0,108790.0,0.49544761]
[1760131842851,0.16258581,108800.0,108760.0,0.19544761]
[1760131843052,0.16258581,108800.0,108790.0,0.3]
[1760131843287,0.16130927,108800.0,108780.0,0.19544761]
[1760131843489,0.16130927,108800.0,108740.0,0.19544761]
[1760131843651,0.16181408,108800.0,108710.0,0.04533002]
[1760131843862,0.16181408,108800.0,108560.0,0.41636082]
[1760131843863,0.16159254,108800.0,108750.0,0.19544761]
[1760131844080,0.16159254,108800.0,108770.0,0.3]
[1760131844423,0.14621215,108800.0,108790.0,0.49544761]
[1760131844987,0.14621215,108800.0,108790.0,0.3]
[1760131845197,0.14536083,108800.0,108790.0,0.3]
[1760131845386,0.14536083,108800.0,108790.0,0.49544761]
[1760131845585,0.14536083,108800.0,108790.0,0.54095004]
[1760131846028,0.14536083,108800.0,108790.0,0.49544761]
[1760131846205,0.32919083,108800.0,108790.0,0.49544761]
[1760131846386,0.14536083,108800.0,108790.0,0.49544761]
[1760131846587,0.14536083,108800.0,108660.0,0.04554777]
[1760131846809,0.14536083,108800.0,108790.0,0.39444761]
[1760131847011,0.14536083,108800.0,108790.0,0.09444761]
[1760131847193,0.14536083,108800.0,108790.0,0.39444761]
[1760131847635,0.32345058,108800.0,108790.0,0.3]
[1760131847803,0.32345058,108800.0,108790.0,0.39444761]
[1760131848627,0.32345058,108800.0,108790.0,0.43995004]
[1760131848934,0.32345058,108800.0,108790.0,0.09444761]
[1760131849145,0.32345058,108800.0,108660.0,0.04554777]
[1760131849290,0.32345058,108800.0,108650.0,0.00479996]
[1760131849488,0.13962058,108800.0,108790.0,0.3]
[1760131849730,0.13962058,108800.0,108750.0,0.04507218]
[1760131849928,0.11962058,108800.0,108790.0,0.3]
[1760131850541,0.2867755,108800.0,108660.0,0.04554777]
[1760131850724,0.25890706,108800.0,108790.0,0.3]
[1760131850884,0.25890706,108800.0,108650.0,0.0240904]
[1760131851090,0.25775007,108800.0,108650.0,0.00479996]
[1760131851285,0.24554359,108800.0,108790.0,0.3]
[1760131851539,0.06171359,108800.0,108790.0,0.3]
[1760131851738,0.06171359,108800.0,108650.0,0.05034565]
[1760131851941,0.05483229,108800.0,108790.0,0.04811915]
[1760131852120,0.05483229,108800.0,108660.0,0.04060617]
[1760131852327,0.02190105,108800.0,108660.0,0.04060617]
[1760131852529,0.20584105,108800.0,108590.0,0.00479841]
[1760131852728,0.02190105,108800.0,108600.0,0.02461731]
[1760131852957,0.02190105,108800.0,108610.0,0.01111429]
[1760131853294,0.00592834,108800.0,108620.0,0.02610741]
[1760131853495,0.00592834,108800.0,108790.0,0.3]
[1760131853983,0.1860203,108800.0,108790.0,0.3]
[1760131854171,0.17432798,108800.0,108790.0,0.3]
[1760131854347,0.4081827,108800.0,108790.0,0.3]
[1760131854751,0.35752008,108800.0,108790.0,0.3]
[1760131854953,0.27575,108800.0,108790.0,0.3]
[1760131855156,0.27575,108800.0,108790.0,0.34198282]
[1760131855334,0.22412686,108800.0,108790.0,0.34198282]
[1760131855875,0.22412686,108800.0,108790.0,0.04198282]
[1760131856275,0.22412686,108800.0,108790.0,0.34198282]
[1760131856642,0.22208821,108800.0,108790.0,0.34198282]
[1760131857278,0.19641485,108800.0,108790.0,0.34198282]
[1760131857581,0.19641485,108800.0,108790.0,0.67099757]
[1760131857776,0.17964838,108800.0,108790.0,0.38211186]
[1760131857938,0.17485731,108800.0,108790.0,0.37099757]
[1760131858157,0.0002,108920.0,108910.0,0.3]
[1760131858384,0.00050544,108920.0,108800.0,0.07148534]
[1760131858561,0.00030544,108920.0,108760.0,0.87300321]
[1760131858745,0.00030544,108920.0,108910.0,0.3]
[1760131859082,0.002,109000.0,108990.0,0.3]
[1760131859282,0.27724,109000.0,108990.0,0.30004878]
[1760131859495,0.27724,109000.0,108990.0,4.878e-05]
[1760131859648,0.27724,109000.0,108990.0,0.30004878]
[1760131860062,0.27724,109000.0,108990.0,4.878e-05]
[1760131860620,0.27724,109000.0,108990.0,0.34860865]
[1760131860779,0.23048002,109000.0,108990.0,0.30004878]
[1760131860981,0.22568872,109000.0,108990.0,0.03587034]
[1760131861179,0.12933684,109310.0,109000.0,0.02591786]
[1760131861518,3.95558061,109420.0,109170.0,0.3]
[1760131861699,0.04484494,109350.0,109170.0,0.3]
[1760131861868,0.04484494,109350.0,109040.0,0.3]
[1760131862067,3.97223652,109420.0,109220.0,0.3]
[1760131862318,0.06947403,109410.0,109200.0,0.3]
[1760131862494,0.06673206,109410.0,109220.0,0.3]
[1760131862696,0.07395068,109400.0,109220.0,0.3]
[1760131862912,0.07395068,109400.0,109250.0,0.3]
[1760131862913,0.25691068,109400.0,109250.0,0.3]
[1760131863103,0.25691068,109400.0,109230.0,0.3]
[1760131863421,0.25691068,109400.0,109170.0,0.3]
[1760131864056,0.53142068,109400.0,109280.0,0.3]
[1760131864248,0.53142068,109400.0,109190.0,0.3]
[1760131864407,0.53142068,109400.0,109340.0,0.3]
[1760131864764,0.53142068,109400.0,109240.0,0.3]
[1760131864765,0.45747,109400.0,109240.0,0.3]
[1760131864908,0.45747,109400.0,109310.0,0.27792705]
[1760131864909,0.0416285,109340.0,109310.0,0.27792705]
[1760131865107,0.06469902,109230.0,109150.0,0.3]
[1760131865323,0.27451,109230.0,109220.0,0.27314163]
[1760131866120,0.27501734,109230.0,109220.0,0.27314163]
[1760131866336,0.45812734,109230.0,109220.0,0.27314163]
[1760131866562,0.45812734,109230.0,109200.0,0.3]
[1760131866903,0.44155522,109230.0,109220.0,0.27314163]
[1760131867041,0.44155522,109230.0,109120.0,0.3]
[1760131867239,0.44155522,109230.0,109220.0,0.25656951]
[1760131867477,0.43526581,109230.0,109220.0,0.25656951]
[1760131867678,0.38002313,109230.0,109220.0,0.25656951]
[1760131867913,0.36326967,109230.0,109220.0,0.55656951]
[1760131868054,0.36326967,109230.0,109220.0,0.57728885]
[1760131868455,0.18361734,109230.0,109220.0,0.32071934]
[1760131868658,0.00050734,109230.0,109220.0,0.34973086]
[1760131868886,3.95558061,109420.0,109410.0,0.55656951]
[1760131869102,3.95608922,109420.0,109410.0,0.3]
[1760131869436,3.88093422,109420.0,109190.0,5e-05]
[1760131869561,0.07552105,109390.0,109360.0,0.02382164]
[1760131869762,0.27419,109390.0,109140.0,5e-05]
[1760131870114,0.27419,109390.0,109380.0,0.25656951]
[1760131870261,0.27419,109390.0,109380.0,0.3]
[1760131870462,0.27419,109390.0,109380.0,0.04814962]
[1760131870664,0.26942345,109390.0,109380.0,0.04814962]
[1760131870978,0.2627299,109390.0,109380.0,0.60471913]
[1760131871400,0.2627299,109390.0,109380.0,0.34814962]
[1760131871600,0.2627299,109390.0,109380.0,0.3478493]
[1760131871812,0.2627299,109390.0,109380.0,0.3]
[1760131872022,0.2059799,109390.0,109380.0,0.3]
[1760131872324,0.20286998,109390.0,109380.0,0.3]
[1760131872469,0.14135199,109390.0,109160.0,5e-05]
[1760131872668,0.14135199,109390.0,109380.0,0.3]
[1760131873081,0.14135199,109390.0,109380.0,0.34538264]
[1760131873281,0.12149627,109390.0,109380.0,0.60195215]
[1760131873712,0.1029406,109390.0,109380.0,0.60195215]
[1760131873921,0.0743266,109390.0,109380.0,0.60195215]
[1760131874139,0.05163528,109390.0,109380.0,0.60195215]
[1760131874340,0.05163528,109390.0,109380.0,0.3]
[1760131874570,0.04686402,109390.0,109380.0,0.55656951]
[1760131874913,0.04686402,109390.0,109380.0,0.3]
[1760131875314,0.00031056,109390.0,109380.0,0.25656951]
[1760131875563,3.84648512,109420.0,109410.0,0.25656951]
[1760131875783,0.01622916,109390.0,109370.0,0.01157819]
[1760131875968,3.83126302,109420.0,109410.0,0.3]
[1760131876118,3.77451302,109420.0,109210.0,0.04590291]
[1760131876315,3.75126272,109420.0,109220.0,0.01461039]
[1760131876518,3.71788319,109420.0,109220.0,0.01461039]
[1760131876935,3.71311801,109420.0,109220.0,0.01461039]
[1760131877145,3.91753801,109420.0,109220.0,0.01461039]
[1760131877583,3.91753801,109420.0,109410.0,0.3]
[1760131878004,3.91753801,109420.0,109210.0,0.04590291]
[1760131878152,3.89384466,109420.0,109310.0,0.3]
[1760131878357,3.89384466,109420.0,109290.0,0.01704179]
[1760131878699,3.89384466,109420.0,109360.0,0.3]
[1760131879054,3.89384466,109420.0,109410.0,0.3]
[1760131879055,3.88895207,109420.0,109410.0,0.3]
[1760131879449,3.83220207,109420.0,109360.0,0.02026713]
[1760131879654,3.83220207,109420.0,109390.0,0.02026713]
[1760131879906,3.82743681,109420.0,109390.0,0.02026713]
[1760131880202,3.79520045,109420.0,109410.0,0.3]
[1760131881319,3.77846047,109420.0,109410.0,0.31111429]
[1760131881472,3.67792287,109420.0,109360.0,0.01111429]
[1760131881676,3.39873934,109420.0,109240.0,1.4699]
[1760131881859,3.39873934,109420.0,109410.0,0.3]
[1760131881860,3.30792735,109420.0,109410.0,0.3]
[1760131882058,3.30792735,109420.0,109260.0,8.0]
[1760131882256,3.28591938,109420.0,109270.0,8.0]
[1760131882513,3.24843563,109420.0,109410.0,0.3]
[1760131882942,3.24367234,109420.0,109410.0,0.3]
[1760131883266,3.24367234,109420.0,109360.0,0.01111429]
[1760131883425,3.23183392,109420.0,109270.0,1.9271]
[1760131883628,3.23183392,109420.0,109410.0,0.3]
[1760131883968,3.23183392,109420.0,109210.0,8.0]
[1760131884192,3.20584357,109420.0,109410.0,0.3]
[1760131884374,3.20477968,109420.0,109230.0,8.0]
[1760131884569,3.04551908,109420.0,109410.0,0.01935845]
[1760131884766,3.04551908,109420.0,109410.0,0.3]
[1760131885528,3.03120725,109420.0,109410.0,0.3]
[1760131885756,3.03120725,109420.0,109410.0,0.03026785]
[1760131885952,3.30063218,109420.0,109410.0,0.03026785]
[1760131886264,3.30063218,109420.0,109360.0,0.02128012]
[1760131886417,3.30063218,109420.0,109410.0,0.02434312]
[1760131886622,3.07924198,109420.0,109150.0,1.48319818]
[1760131886931,2.80510198,109420.0,109410.0,0.3]
[1760131887134,2.80510198,109420.0,109360.0,0.0178079]
[1760131887340,2.78729691,109420.0,109150.0,0.02991116]
[1760131887541,2.78729691,109420.0,109170.0,0.01685052]
[1760131887745,2.78729691,109420.0,109330.0,0.3]
[1760131887987,3.0414446,109420.0,109340.0,0.01685181]
[1760131888186,3.0413946,109420.0,109150.0,0.02951475]
[1760131888409,3.03800847,109420.0,109350.0,0.3]
[1760131888838,3.01033628,109420.0,109350.0,0.31390678]
[1760131889148,0.02499999,109380.0,109310.0,0.3]
[1760131889397,0.26018969,109380.0,109330.0,0.01333907]
[1760131889602,0.19454233,109380.0,109340.0,0.3]
[1760131889873,2.66924319,109420.0,109360.0,0.01320197]
[1760131890030,2.66924319,109420.0,109410.0,0.3]
[1760131890253,2.6696598,109420.0,109410.0,0.31320197]
[1760131890577,2.53329191,109420.0,109410.0,0.31320197]
[1760131890879,2.7605497,109420.0,109410.0,0.31320197]
[1760131891016,2.4863597,109420.0,109410.0,0.31320197]
[1760131891416,2.44120058,109420.0,109410.0,0.31320197]
[1760131891865,2.36197972,109420.0,109410.0,0.33820197]
[1760131892067,2.04459208,109420.0,109410.0,0.35100123]
[1760131892373,1.49913693,109420.0,109410.0,0.33820197]
[1760131892517,1.49913693,109420.0,109410.0,0.63820195]
[1760131892731,1.42855968,109420.0,109410.0,0.31320195]
[1760131892943,1.42855968,109420.0,109410.0,0.39999998]
[1760131893151,1.41609677,109420.0,109410.0,0.74561562]
[1760131893362,0.04502503,109870.0,109570.0,0.3]
[1760131893562,0.01824307,109580.0,109570.0,0.3]
[1760131894014,0.35708464,109580.0,109480.0,0.01105886]
[1760131894194,0.29208307,109580.0,109570.0,0.3]
[1760131894515,5e-05,109580.0,109530.0,0.01550635]
[1760131894719,5e-05,109580.0,109570.0,0.3]
[1760131894863,0.0015,109620.0,109570.0,0.01851636]
[1760131895066,0.0015,109620.0,109580.0,0.03117521]
[1760131895264,0.01394113,109650.0,109620.0,0.0015]
[1760131895541,0.27364,109650.0,109510.0,0.01259891]
[1760131895740,0.268883,109650.0,109640.0,0.19986339]
[1760131895988,0.268883,109650.0,109370.0,1.5972]
[1760131895989,0.0168753,109640.0,109600.0,0.3]
[1760131896194,0.268883,109640.0,109630.0,0.01941168]
[1760131896494,0.2520077,109640.0,109630.0,0.31390853]
[1760131896694,0.22356927,109640.0,109630.0,0.31390853]
[1760131896897,0.16254695,109640.0,109630.0,0.30004867]
[1760131897101,0.16254695,109640.0,109630.0,0.69645585]
[1760131897299,0.16254695,109640.0,109630.0,0.39645585]
[1760131897597,0.13596085,109640.0,109630.0,0.28318793]
[1760131897754,0.12406783,109640.0,109630.0,0.28512151]
[1760131897951,0.07921085,109640.0,109630.0,0.01525176]
[1760131898152,0.05787058,109640.0,109630.0,0.38512151]
[1760131898353,0.05334257,109640.0,109600.0,0.3]
[1760131898575,0.05334257,109640.0,109600.0,0.30015098]
[1760131898773,0.02860456,109640.0,109610.0,0.01749843]
[1760131898977,0.00650124,109640.0,109610.0,0.01749843]
[1760131899178,0.18756618,109640.0,109610.0,0.01749843]
[1760131899393,4.80618439,109770.0,109760.0,0.26986975]
[1760131899594,4.80618439,109770.0,109750.0,0.1]
[1760131899595,4.80618439,109770.0,109600.0,0.3]
[1760131899810,5.07969439,109770.0,109610.0,0.02093284]
[1760131900220,5.07969439,109770.0,109610.0,0.05643138]
[1760131900438,5.07969439,109770.0,109620.0,0.0284071]
[1760131900601,5.08020508,109770.0,109610.0,0.03023912]
[1760131900803,5.08020508,109770.0,109620.0,0.0315807]
[1760131901166,5.08020508,109770.0,109600.0,0.32670687]
[1760131901482,5.08020508,109770.0,109600.0,0.3]
[1760131901706,5.08020508,109770.0,109570.0,0.02499999]
[1760131901909,5.08020508,109770.0,109610.0,0.02428535]
[1760131902315,5.08020508,109770.0,109600.0,0.03069199]
[1760131902479,5.0774721,109770.0,109570.0,0.02437161]
[1760131902679,5.0774721,109770.0,109600.0,0.02445118]
[1760131902911,5.0774721,109770.0,109500.0,0.02499999]
[1760131903182,5.0774721,109770.0,109510.0,0.02729843]
[1760131903384,5.2598921,109770.0,109510.0,0.02687601]
[1760131903683,5.2598921,109770.0,109520.0,0.02729843]
[1760131903994,5.2598921,109770.0,109530.0,0.02820479]
[1760131904215,5.2799057,109770.0,109530.0,0.02909558]
[1760131904458,0.02051948,109760.0,109530.0,0.02909558]
[1760131904634,0.47392465,109760.0,109530.0,0.02909558]
[1760131905150,0.47332729,109760.0,109530.0,0.02909558]
[1760131905465,0.45593,109760.0,109530.0,0.00303757]
[1760131905631,0.02418251,109750.0,109530.0,0.02813568]
[1760131905814,0.02418251,109750.0,109520.0,0.02729843]
[1760131905815,0.48044695,109750.0,109520.0,0.02729843]
[1760131906016,0.03927976,109740.0,109520.0,0.02729843]
[1760131906219,0.49520976,109740.0,109530.0,0.02842102]
[1760131906437,0.49520976,109740.0,109520.0,0.05823514]
[1760131906438,0.45593,109740.0,109520.0,0.05823514]
[1760131906776,0.04559148,109730.0,109530.0,0.03093671]
[1760131906960,0.45593,109730.0,109530.0,0.05238838]
[1760131907167,0.45593,109730.0,109530.0,0.01848527]
[1760131907572,0.04566563,109720.0,109530.0,0.01510929]
[1760131907777,0.50159563,109720.0,109530.0,0.01406788]
[1760131908016,0.45644036,109720.0,109530.0,0.01406788]
[1760131908221,0.36822893,109720.0,109550.0,0.02499999]
[1760131908423,0.36822893,109720.0,109560.0,0.02587646]
[1760131908634,0.36822893,109720.0,109590.0,0.04568762]
[1760131908802,0.36822893,109720.0,109590.0,0.3]
[1760131909004,0.36822893,109720.0,109670.0,0.3]
[1760131909661,0.36822893,109720.0,109620.0,0.0298759]
[1760131909854,0.33714073,109720.0,109640.0,0.03105171]
[1760131909985,0.33714073,109720.0,109600.0,0.3]
[1760131910202,0.33714073,109720.0,109610.0,0.04539204]
[1760131910401,0.33714073,109720.0,109610.0,0.05190812]
[1760131910778,0.15472073,109720.0,109540.0,0.05464378]
[1760131910969,0.10457389,109720.0,109540.0,0.05464378]
[1760131911626,0.10457389,109720.0,109660.0,0.3]
[1760131911839,0.10457389,109720.0,109640.0,0.05969007]
[1760131912038,0.10457389,109720.0,109570.0,0.09999999]
[1760131912366,0.13524564,109720.0,109590.0,0.09999999]
[1760131912564,0.13524564,109720.0,109590.0,0.1649213]
[1760131912770,0.13524564,109720.0,109590.0,0.09999999]
[1760131912947,0.13524564,109720.0,109570.0,0.06492131]
[1760131913325,0.13524564,109720.0,109540.0,0.045973]
[1760131913491,0.13524564,109720.0,109550.0,0.03332975]
[1760131913693,0.13524564,109720.0,109530.0,0.001]
[1760131913899,0.13524564,109720.0,109540.0,0.05492138]
[1760131914198,0.13524564,109720.0,109540.0,0.06062162]
[1760131915839,0.13524564,109720.0,109530.0,0.001]
[1760131916129,0.10457389,109720.0,109520.0,0.001]
[1760131916273,0.10157892,109720.0,109530.0,0.02778159]
[1760131916475,4.40630165,109770.0,109530.0,0.02778159]
[1760131916725,4.67990165,109770.0,109530.0,0.0235173]
[1760131916922,4.67990165,109770.0,109470.0,0.01179306]
[1760131917141,4.68041234,109770.0,109510.0,0.04823708]
[1760131917331,4.68041234,109770.0,109480.0,0.04823708]
[1760131917537,4.68041234,109770.0,109480.0,0.02945644]
[1760131917891,4.68041234,109770.0,109380.0,0.001]
[1760131918098,0.04165809,109760.0,109430.0,0.02256862]
[1760131918325,0.2736,109760.0,109430.0,0.00705056]
[1760131918546,0.2736,109760.0,109390.0,0.02499999]
[1760131918796,0.12280399,109750.0,109420.0,0.02507999]
[1760131918996,0.00446551,109620.0,109430.0,0.02699431]
[1760131919118,0.26163077,109620.0,109450.0,0.02053448]
[1760131919318,0.26163077,109620.0,109540.0,0.02053448]
[1760131919560,0.26163077,109620.0,109530.0,0.01010067]
[1760131919883,0.26163077,109620.0,109480.0,0.09999999]
[1760131920115,0.26163077,109620.0,109460.0,0.0059868]
[1760131920327,0.01901319,109650.0,109620.0,0.3]
[1760131920499,0.01901319,109650.0,109620.0,0.00087808]
[1760131920698,0.01901319,109650.0,109640.0,0.3]
[1760131920890,0.02911303,109640.0,109620.0,0.00087808]
[1760131921218,0.27365,109640.0,109620.0,0.3]
[1760131921443,0.27277192,109640.0,109620.0,0.3]
[1760131921596,0.27277192,109640.0,109630.0,0.00175616]
[1760131921921,0.28816544,109640.0,109630.0,0.00150013]
[1760131922149,0.26990807,109640.0,109630.0,0.30150013]
[1760131922438,0.01901319,109630.0,109620.0,0.00015098]
[1760131922654,0.24955237,109630.0,109620.0,0.00015098]
[1760131922848,0.24955237,109630.0,109620.0,0.30015098]
[1760131922998,0.23053918,109630.0,109620.0,0.30015098]
[1760131923205,0.09938724,109620.0,109490.0,0.09999999]
[1760131923405,0.11773664,109630.0,109610.0,0.3]
[1760131923799,0.01890443,109620.0,109610.0,0.45423756]
[1760131924006,0.01890443,109620.0,109610.0,0.35423757]
[1760131924153,4.34226839,109770.0,109730.0,0.3]
[1760131924361,4.23421037,109770.0,109730.0,0.3]
[1760131924559,4.23472115,109770.0,109730.0,0.3]
[1760131924769,4.23472115,109770.0,109680.0,0.3]
[1760131924930,4.15463114,109770.0,109760.0,0.3]
[1760131925132,4.19572471,109770.0,109760.0,0.3]
[1760131925332,4.17090786,109770.0,109760.0,0.3]
[1760131925616,4.16668579,109770.0,109760.0,0.3]
[1760131925799,4.16668579,109770.0,109620.0,0.05872327]
[1760131925800,4.42371907,109770.0,109680.0,0.3]
[1760131926000,4.43999579,109770.0,109620.0,0.05]
[1760131926249,4.09942807,109770.0,109620.0,0.05]
[1760131926423,4.08315135,109770.0,109730.0,0.3]
[1760131926627,4.08315135,109770.0,109760.0,0.3]
[1760131926830,4.07017691,109770.0,109730.0,0.3]
[1760131927065,4.06542527,109770.0,109760.0,0.3]
[1760131927277,4.05215599,109770.0,109760.0,0.3]
[1760131927484,3.9665029,109770.0,109760.0,0.3]
[1760131927684,3.9665029,109770.0,109760.0,0.04772885]
[1760131927884,0.09999996,109760.0,109730.0,0.3]
[1760131928113,4.12760492,109770.0,109710.0,0.30872327]
[1760131928114,3.85429492,109770.0,109710.0,0.30872327]
[1760131928315,3.84953678,109770.0,109760.0,0.30872327]
[1760131928524,3.84479003,109770.0,109760.0,0.3]
[1760131928732,3.84479003,109770.0,109740.0,0.00872327]
[1760131928935,3.83054111,109770.0,109750.0,0.00872327]
[1760131929139,4.28e-05,109760.0,109750.0,0.3]
[1760131929415,3.78808283,109770.0,109750.0,0.3]
[1760131929621,3.77935956,109770.0,109750.0,0.3]
[1760131930113,3.77116999,109770.0,109750.0,1.16726395]
[1760131930416,3.77069532,109770.0,109760.0,0.24595285]
[1760131930616,3.77069532,109770.0,109760.0,0.02129265]
[1760131930818,3.74646792,109770.0,109760.0,0.02129265]
[1760131930977,3.72469837,109770.0,109760.0,0.32129265]
[1760131931185,3.6658171,109770.0,109730.0,0.03352]
[1760131931515,3.65196558,109770.0,109740.0,0.00870206]
[1760131931717,3.63376487,109770.0,109760.0,0.34595286]
[1760131931917,3.61251959,109770.0,109760.0,1.18723002]
[1760131932261,3.34133293,109770.0,109760.0,1.21321681]
[1760131932471,3.32748782,109770.0,109760.0,1.21321681]
[1760131932619,3.31504728,109770.0,109760.0,9.21321681]
[1760131932824,3.23691345,109770.0,109760.0,9.21321681]
[1760131933154,3.23691345,109770.0,109760.0,9.21519721]
[1760131933155,2.78414253,109770.0,109760.0,9.21519721]
[1760131933381,2.77189918,109770.0,109760.0,9.21321681]
[1760131933546,2.70537542,109770.0,109760.0,8.91321681]
[1760131933695,2.02614396,109770.0,109760.0,5.41321681]
[1760131933904,1.11966216,109770.0,109760.0,5.4332682]
[1760131934112,0.001,109930.0,109870.0,0.34548514]
[1760131934323,0.00404183,109900.0,109880.0,0.04526385]
[1760131934556,0.01728346,109940.0,109890.0,0.38631208]
[1760131934773,0.01728346,109940.0,109890.0,1.25357603]
[1760131934976,0.01369232,109940.0,109930.0,0.3]
[1760131935182,0.01369232,109940.0,109930.0,1.16726395]
[1760131935493,4.96956988,110050.0,110040.0,0.3]
[1760131935635,4.92329837,110050.0,110040.0,1.16726395]
[1760131935830,4.37202686,110050.0,110040.0,1.19166742]
[1760131936038,2.97174442,110050.0,110040.0,1.16726395]
[1760131936333,1.47356623,110050.0,110040.0,1.1859133]
[1760131936524,0.66434362,110050.0,110040.0,1.18683743]
[1760131936745,0.61434362,110050.0,110040.0,0.88592773]
[1760131937002,0.60959742,110050.0,110040.0,1.16726395]
[1760131937334,0.60484848,110050.0,110040.0,1.16726395]
[1760131937546,0.60484848,110050.0,110040.0,1.21295618]
[1760131937745,0.59110272,110050.0,110040.0,1.19752682]
[1760131937963,0.55245504,110050.0,110040.0,1.19752682]
[1760131938178,0.52153394,110050.0,110040.0,1.16726395]
[1760131938628,0.51073017,110050.0,110040.0,1.16726395]
[1760131938857,0.48640004,110050.0,110040.0,1.18911908]
[1760131939158,0.4816683,110050.0,110040.0,1.16726395]
[1760131939731,0.4816683,110050.0,110040.0,1.36726394]
[1760131939920,0.69333803,110050.0,110040.0,0.86726395]
[1760131940081,0.66541515,110050.0,110040.0,1.36726394]
[1760131940286,0.64023561,110050.0,110040.0,1.16726395]
[1760131940484,0.64023561,110050.0,110040.0,1.36726394]
[1760131940670,0.60516628,110050.0,110040.0,1.19250068]
[1760131940913,0.56875383,110050.0,110040.0,1.21295618]
[1760131941111,0.46665435,110050.0,110040.0,1.16726395]
[1760131941338,0.43497813,110050.0,110040.0,1.16726395]
[1760131941541,0.40330191,110050.0,110040.0,1.16726395]
[1760131941945,0.40330191,110050.0,110040.0,1.36726394]
[1760131942108,0.01703656,110150.0,110050.0,0.19999999]
[1760131942306,0.01703656,110150.0,110050.0,0.00015168]
[1760131942508,0.05711526,110060.0,110050.0,8.30015168]
[1760131942712,0.01703656,110150.0,110050.0,8.30015168]
[1760131942951,0.0079533,110100.0,110090.0,8.3]
[1760131943157,0.00591314,110100.0,110090.0,10.08540795]
[1760131943583,0.00591314,110100.0,110090.0,1.21240474]
[1760131943784,0.00117381,110100.0,110090.0,1.21240474]
[1760131943935,0.00117381,110100.0,110090.0,1.16726395]
[1760131944142,0.00117381,110100.0,110090.0,1.16741563]
[1760131944572,3e-08,110100.0,110090.0,1.16741563]
[1760131944792,0.00055361,110210.0,110090.0,1.16741563]
[1760131944793,4.9357833,110260.0,110250.0,0.3]
[1760131945047,4.9357833,110260.0,110250.0,1.59642873]
[1760131945283,4.93105524,110260.0,110250.0,1.29642873]
[1760131945462,4.55495512,110260.0,110250.0,1.36629849]
[1760131945682,4.55495512,110260.0,110250.0,1.29642873]
[1760131945867,4.55546849,110260.0,110250.0,1.29642873]
[1760131946211,4.55546849,110260.0,110250.0,1.36629849]
[1760131946835,4.55073809,110260.0,110250.0,1.36629849]
[1760131946991,4.54698984,110260.0,110250.0,1.36629849]
[1760131947168,4.54698984,110260.0,110250.0,1.46629848]
[1760131947970,4.5320138,110260.0,110250.0,1.48127452]
[1760131948250,4.5320138,110260.0,110250.0,1.29642873]
[1760131948449,4.4939791,110260.0,110250.0,1.29642873]
[1760131948690,4.08908382,110260.0,110250.0,1.34148465]
[1760131948889,4.08908382,110260.0,110250.0,1.29642873]
[1760131949101,4.05097282,110260.0,110250.0,1.32857085]
[1760131949305,4.05097282,110260.0,110250.0,1.46629848]
[1760131949501,4.32307282,110260.0,110250.0,1.29642873]
[1760131949741,3.91816854,110260.0,110250.0,0.91231987]
[1760131949901,3.91816854,110260.0,110250.0,0.86726395]
[1760131950267,3.91816854,110260.0,110250.0,0.86816395]
[1760131950604,3.91816854,110260.0,110250.0,1.0380337]
[1760131950778,3.91189886,110260.0,110250.0,0.86816395]
[1760131950980,3.91189886,110260.0,110250.0,0.89317766]
[1760131951201,3.86926215,110260.0,110250.0,0.89317766]
[1760131951404,3.86926215,110260.0,110250.0,0.86816395]
[1760131951890,3.86453942,110260.0,110250.0,1.0380337]
[1760131952024,3.86362899,110260.0,110250.0,1.0380337]
[1760131952229,3.86257035,110260.0,110250.0,0.86816395]
[1760131952435,0.0015,110340.0,110250.0,0.86816395]
[1760131952628,0.0015,110340.0,110250.0,0.86831563]
[1760131953048,0.02027608,110370.0,110250.0,0.86831563]
[1760131953248,0.02027608,110370.0,110300.0,0.3]
[1760131953464,0.02027608,110360.0,110300.0,1.16726395]
[1760131953667,0.02027608,110370.0,110360.0,0.3]
[1760131953866,0.02027608,110370.0,110360.0,0.86685676]
[1760131954021,0.02027608,110370.0,110360.0,0.86726395]
[1760131954224,0.02027608,110370.0,110360.0,1.0371337]